[Event "European Womens-ch 2025"]
[Site "Rhodes"]
[Date "2025.04.04"]
[Round "5.63"]
[White "Caku, Kler"]
[Black "Korinioti, Myrto"]
[Result "1-0"]
[Annotator "NA"]
[ECO "B72"]
[WhiteElo "2036"]
[BlackElo "1667"]
[PlyCount "49"]
[EventDate "2025.03.29"]
[EventType "swiss"]
[EventCountry "GRE"]
[SourceTitle "playchess.com"]
[Source "ChessBase"]
[SourceQuality "1"]
[TimeControl "40/5400+30:1800+30"]

1. e4 {[%emt 0:00:02]} c5 {[%emt 0:00:30]} 2. Nf3 {[%emt 0:00:07]} Nc6 {[%emt 0:00:11]} 3. d4 {[%emt 0:00:08]} cxd4 {[%emt 0:00:06]} 4. Nxd4 {[%emt 0:00:06]} g6 {[%emt 0:00:16]} 5. Nc3 {[%emt 0:00:22]} Bg7 {[%emt 0:00:33]} 6. Be3 {[%emt 0:00:08]} Nf6 {[%emt 0:00:18]} 7. Bc4 {[%emt 0:00:22]} O-O {[%emt 0:01:26]} 8. Bb3 {[%emt 0:01:36]} d6 {[%emt 0:04:58]} 9. h3 {[%emt 0:00:37]} Bd7 {[%emt 0:10:13]} 10. O-O {[%emt 0:00:04]} Nxd4 11. Bxd4 b5 {[%emt 0:07:01]} 12. a3 {[%emt 0:07:51]} a6 {[%emt 0:01:28]} 13. Qd3 {[%emt 0:01:18]} Bc6 {[%emt 0:03:45]} 14. Rad1 {[%emt 0:01:53]} Nd7 {[%emt 0:05:17]} 15. Bxg7 {[%emt 0:12:31]} Kxg7 {[%emt 0:00:10]} 16. Ne2 {[%emt 0:03:09]} Nc5 {[%emt 0:12:19]} 17. Qc3+ {[%emt 0:00:56]} f6 {[%emt 0:02:00]} 18. Bd5 {[%emt 0:01:26]} Bxd5 {[%emt 0:12:50]} 19. exd5 {[%emt 0:00:06]} Kg8 {[%emt 0:16:02]} 20. Nd4 {[%emt 0:04:20]} Qb6 {[%emt 0:06:43]} 21. Qe3 {[%emt 0:02:06]} Rfe8 {[%emt 0:02:03]} 22. Rfe1 {[%emt 0:13:05]} Ra7 {[%emt 0:06:39]} 23. Qh6 {[%emt 0:01:02]} Rf8 {[%emt 0:04:51]} 24. b4 {[%emt 0:02:08]} Na4 {[%emt 0:00:51]} 25. Nc6 {[%emt 0:02:47]} 1-0

[Event "European Womens-ch 2025"]
[Site "Rhodes"]
[Date "2025.04.04"]
[Round "5.64"]
[White "Bania, Eleni"]
[Black "Zvereva, Marija"]
[Result "1/2-1/2"]
[Annotator "NA"]
[ECO "B09"]
[WhiteElo "1809"]
[BlackElo "2033"]
[PlyCount "35"]
[EventDate "2025.03.29"]
[EventType "swiss"]
[EventCountry "GRE"]
[SourceTitle "playchess.com"]
[Source "ChessBase"]
[SourceQuality "1"]
[TimeControl "40/5400+30:1800+30"]

1. e4 {[%emt 0:00:01]} d6 {[%emt 0:06:12]} 2. d4 {[%emt 0:00:06]} Nf6 {[%emt 0:00:09]} 3. Nc3 {[%emt 0:00:06]} g6 {[%emt 1:25:39]} 4. f4 {[%emt 0:00:25]} Bg7 {[%emt 0:00:00]} 5. Nf3 {[%emt 0:00:22]} O-O {[%emt 0:00:00]} 6. Bd3 {[%emt 0:00:13]} Nbd7 {[%emt 0:00:00]} 7. O-O {[%emt 0:00:55]} c6 {[%emt 0:00:00]} 8. Kh1 {[%emt 0:11:46]} b5 {[%emt 0:00:00]} 9. f5 {[%emt 0:13:01]} b4 {[%emt 0:00:00]} 10. Ne2 {[%emt 0:02:44]} Nb6 {[%emt 0:00:00]} 11. Qe1 {[%emt 0:09:08]} c5 {[%emt 0:00:00]} 12. c3 {[%emt 0:04:48]} bxc3 {[%emt 0:00:00]} 13. bxc3 {[%emt 0:00:07]} cxd4 {[%emt 0:00:00]} 14. cxd4 {[%emt 0:05:26]} d5 {[%emt 0:00:00]} 15. e5 {[%emt 0:15:26]} Ne4 {[%emt 0:00:00]} 16. Nh4 {[%emt 0:01:33]} Bb7 {[%emt 0:00:00]} 17. Ng3 {[%emt 0:05:42]} Rc8 {[%emt 0:00:00]} 18. Ba3 {[%emt 0:11:00]} 1/2-1/2

[Event "European Womens-ch 2025"]
[Site "Rhodes"]
[Date "2025.04.04"]
[Round "5.65"]
[White "Valkova, Angelika"]
[Black "Silva, Ana Ines Teixeira Da"]
[Result "1-0"]
[Annotator "NA"]
[ECO "D31"]
[WhiteElo "2001"]
[BlackElo "1893"]
[PlyCount "119"]
[EventDate "2025.03.29"]
[EventType "swiss"]
[EventCountry "GRE"]
[SourceTitle "playchess.com"]
[Source "ChessBase"]
[SourceQuality "1"]
[TimeControl "40/5400+30:1800+30"]

1. d4 {[%emt 0:00:03]} d5 {[%emt 0:00:05]} 2. c4 {[%emt 0:00:05]} e6 {[%emt 0:00:04]} 3. Nc3 {[%emt 0:00:05]} h6 {[%emt 0:00:13]} 4. cxd5 {[%emt 0:00:08]} exd5 {[%emt 0:00:06]} 5. Bf4 {[%emt 0:00:04]} Nf6 {[%emt 0:00:39]} 6. e3 {[%emt 0:05:30]} Bd6 {[%emt 0:00:40]} 7. Bxd6 {[%emt 0:01:12]} Qxd6 {[%emt 0:00:05]} 8. Bd3 {[%emt 0:00:27]} O-O {[%emt 0:01:42]} 9. Nge2 {[%emt 0:00:30]} b6 {[%emt 0:12:46]} 10. Ng3 {[%emt 0:01:06]} c5 {[%emt 0:14:25]} 11. dxc5 {[%emt 0:02:50]} bxc5 {[%emt 0:02:55]} 12. O-O {[%emt 0:00:37]} Ba6 {[%emt 0:08:35]} 13. Nf5 {[%emt 0:10:20]} Qe5 {[%emt 0:20:52]} 14. f4 {[%emt 0:08:07]} Qe6 {[%emt 0:04:05]} 15. Bxa6 {[%emt 0:00:37]} Nxa6 {[%emt 0:00:42]} 16. Nxd5 {[%emt 0:01:41]} Rfd8 {[%emt 0:12:51]} 17. Nxf6+ {[%emt 0:02:55]} Qxf6 {[%emt 0:00:11]} 18. Qc2 {[%emt 0:04:47]} Rab8 {[%emt 0:01:45]} 19. b3 {[%emt 0:07:33]} c4 {[%emt 0:07:13]} 20. Qxc4 {[%emt 0:05:57]} Qxf5 {[%emt 0:01:09]} 21. Qxa6 {[%emt 0:00:11]} Rd2 {[%emt 0:01:23]} 22. Rfd1 {[%emt 0:12:22]} Rbd8 {[%emt 0:00:47]} 23. Rxd2 {[%emt 0:00:51]} Rxd2 {[%emt 0:00:09]} 24. Qc6 {[%emt 0:00:33]} Qd3 {[%emt 0:03:34]} 25. Qf3 {[%emt 0:08:50]} Re2 {[%emt 0:01:15]} 26. h3 {[%emt 0:09:09]} Rxe3 {[%emt 0:03:15]} 27. Qf1 {[%emt 0:01:38]} Qd2 {[%emt 0:01:33]} 28. Qd1 {[%emt 0:01:59]} Re2 {[%emt 0:00:49]} 29. Qxd2 {[%emt 0:00:39]} Rxd2 {[%emt 0:00:05]} 30. Kh2 {[%emt 0:07:34]} g6 {[%emt 0:00:20]} 31. Kg3 {[%emt 0:01:48]} Kg7 {[%emt 0:00:07]} 32. Kf3 {[%emt 0:01:34]} h5 {[%emt 0:00:15]} 33. b4 {[%emt 0:01:19]} Rb2 {[%emt 0:00:48]} 34. a3 {[%emt 0:00:06]} Kf6 {[%emt 0:00:57]} 35. Re1 {[%emt 0:00:53]} Ra2 {[%emt 0:00:35]} 36. Re3 {[%emt 0:00:06]} g5 {[%emt 0:00:36]} 37. fxg5+ {[%emt 0:00:45]} Kxg5 {[%emt 0:00:05]} 38. Re5+ {[%emt 0:00:24]} f5 {[%emt 0:00:24]} 39. Ra5 {[%emt 0:00:13]} Rb2 {[%emt 0:00:29]} 40. Rxa7 {[%emt 0:00:00]} Rb3+ {[%emt 0:00:00]} 41. Ke2 {[%emt 0:04:23]} Kf4 {[%emt 0:06:07]} 42. Ra5 {[%emt 0:03:55]} Rb2+ {[%emt 0:04:38]} 43. Kd3 {[%emt 0:00:28]} Rxg2 {[%emt 0:00:21]} 44. b5 {[%emt 0:00:36]} Kg3 {[%emt 0:06:33]} 45. Ra4 {[%emt 0:06:11]} Kxh3 {[%emt 0:02:42]} 46. b6 {[%emt 0:01:49]} Rg8 {[%emt 0:02:07]} 47. Ra5 {[%emt 0:08:20]} Rb8 {[%emt 0:09:45]} 48. Rb5 {[%emt 0:00:06]} Kg2 {[%emt 0:02:02]} 49. a4 {[%emt 0:01:24]} f4 {[%emt 0:00:14]} 50. a5 {[%emt 0:03:27]} f3 {[%emt 0:00:43]} 51. Rg5+ {[%emt 0:00:28]} Kf1 {[%emt 0:01:10]} 52. Rxh5 {[%emt 0:00:07]} f2 {[%emt 0:00:18]} 53. Rf5 {[%emt 0:00:17]} Ke1 {[%emt 0:00:37]} 54. Kc4 {[%emt 0:00:11]} f1=Q+ {[%emt 0:00:24]} 55. Rxf1+ {[%emt 0:00:03]} Kxf1 {[%emt 0:00:06]} 56. Kb5 {[%emt 0:00:11]} Ke2 {[%emt 0:00:13]} 57. a6 {[%emt 0:00:27]} Kd3 {[%emt 0:00:24]} 58. b7 {[%emt 0:01:24]} Kd4 {[%emt 0:01:11]} 59. Kb6 {[%emt 0:00:34]} Kd5 {[%emt 0:00:49]} 60. a7 {[%emt 0:00:14]} 1-0

[Event "European Womens-ch 2025"]
[Site "Rhodes"]
[Date "2025.04.04"]
[Round "5.66"]
[White "Lamprianou, Marianna"]
[Black "Mitraka, Chrysoula-Paraskevi"]
[Result "0-1"]
[Annotator "NA"]
[ECO "B13"]
[WhiteElo "1498"]
[BlackElo "1820"]
[PlyCount "114"]
[EventDate "2025.03.29"]
[EventType "swiss"]
[EventCountry "GRE"]
[SourceTitle "playchess.com"]
[Source "ChessBase"]
[SourceQuality "1"]
[TimeControl "40/5400+30:1800+30"]

1. e4 {[%emt 0:00:03]} c6 {[%emt 0:00:37]} 2. d4 {[%emt 0:00:17]} d5 {[%emt 0:00:06]} 3. exd5 {[%emt 0:00:49]} cxd5 {[%emt 0:02:33]} 4. Bd3 {[%emt 0:00:23]} Nc6 {[%emt 0:00:24]} 5. c3 {[%emt 0:00:23]} Nf6 {[%emt 0:00:44]} 6. Bf4 {[%emt 0:01:18]} Bg4 {[%emt 0:01:26]} 7. Qb3 {[%emt 0:01:09]} Qd7 {[%emt 0:01:45]} 8. Nd2 {[%emt 0:01:51]} e6 {[%emt 0:05:59]} 9. Ngf3 {[%emt 0:03:01]} Bxf3 {[%emt 0:08:46]} 10. Nxf3 {[%emt 0:00:53]} a6 {[%emt 0:03:47]} 11. O-O {[%emt 0:03:19]} Be7 {[%emt 0:03:17]} 12. Rae1 {[%emt 0:08:50]} O-O {[%emt 0:07:09]} 13. Qc2 {[%emt 0:07:09]} Rac8 {[%emt 0:05:31]} 14. Qd1 {[%emt 0:12:54]} Bd6 {[%emt 0:08:59]} 15. Be5 {[%emt 0:15:18]} Qe7 {[%emt 0:11:49]} 16. a3 {[%emt 0:07:51]} h6 {[%emt 0:04:29]} 17. c4 {[%emt 0:03:26]} dxc4 {[%emt 0:05:46]} 18. Bxc4 {[%emt 0:00:35]} Rfd8 {[%emt 0:04:01]} 19. h3 {[%emt 0:08:56]} Bxe5 {[%emt 0:03:30]} 20. Bxe6 {[%emt 0:06:18]} fxe6 {[%emt 0:00:57]} 21. Nxe5 {[%emt 0:00:56]} Nxe5 {[%emt 0:00:27]} 22. Rxe5 {[%emt 0:00:09]} Qd7 {[%emt 0:01:04]} 23. Qb3 {[%emt 0:01:49]} Rc6 {[%emt 0:01:58]} 24. Rfe1 {[%emt 0:01:33]} Nd5 {[%emt 0:01:14]} 25. Qg3 {[%emt 0:01:50]} Qf7 {[%emt 0:01:39]} 26. R1e2 {[%emt 0:01:31]} Rf8 {[%emt 0:01:24]} 27. f3 {[%emt 0:01:49]} Qf4 {[%emt 0:01:48]} 28. Qf2 {[%emt 0:01:13]} Rc1+ {[%emt 0:01:35]} 29. Re1 {[%emt 0:00:20]} Rxe1+ {[%emt 0:00:39]} 30. Qxe1 {[%emt 0:00:25]} Qxd4+ {[%emt 0:00:30]} 31. Kh1 {[%emt 0:00:22]} Qxb2 {[%emt 0:02:27]} 32. Rxe6 {[%emt 0:00:10]} Nf4 {[%emt 0:00:20]} 33. Rg6 {[%emt 0:02:39]} Nxg6 {[%emt 0:00:19]} 34. Qe6+ {[%emt 0:00:09]} Kh7 {[%emt 0:00:26]} 35. Qe4 {[%emt 0:00:22]} Qc1+ {[%emt 0:00:10]} 36. Kh2 {[%emt 0:00:21]} Qf4+ {[%emt 0:00:05]} 37. Qxf4 {[%emt 0:00:42]} Rf7 {[%emt 0:11:20]} 38. Qf5 Rxf5 {[%emt 0:00:00]} 39. Kg3 {[%emt 0:00:55]} Rf4 {[%emt 0:00:00]} 40. h4 {[%emt 0:00:11]} Rxh4 {[%emt 0:00:00]} 41. Kf2 {[%emt 0:00:13]} Ra4 {[%emt 0:00:00]} 42. g4 {[%emt 0:00:19]} Rxa3 {[%emt 0:00:00]} 43. Ke2 {[%emt 0:00:17]} b5 {[%emt 0:00:00]} 44. Kd2 {[%emt 0:00:11]} b4 {[%emt 0:00:00]} 45. Kc2 {[%emt 0:00:29]} Rxf3 {[%emt 0:00:00]} 46. Kb2 {[%emt 0:00:11]} b3 {[%emt 0:00:00]} 47. Kb1 {[%emt 0:00:24]} a5 {[%emt 0:00:00]} 48. Kb2 {[%emt 0:00:10]} a4 {[%emt 0:00:00]} 49. Kb1 {[%emt 0:00:10]} a3 {[%emt 0:00:00]} 50. Kc1 {[%emt 0:00:06]} a2 {[%emt 0:00:00]} 51. Kb2 {[%emt 0:00:16]} Rf2+ {[%emt 0:00:00]} 52. Ka1 {[%emt 0:00:19]} Rf1+ {[%emt 0:00:00]} 53. Kb2 {[%emt 0:00:09]} a1=Q+ {[%emt 0:00:00]} 54. Kxb3 {[%emt 0:00:10]} Rc1 {[%emt 0:00:00]} 55. g5 {[%emt 0:00:28]} hxg5 {[%emt 0:00:00]} 56. Kb4 {[%emt 0:00:06]} Qb2+ {[%emt 0:00:00]} 57. Ka4 {[%emt 0:00:12]} Ra1# {[%emt 0:00:00]} 0-1

[Event "European Womens-ch 2025"]
[Site "Rhodes"]
[Date "2025.04.04"]
[Round "5.67"]
[White "Revelioti, Eleni Nefeli"]
[Black "Kaka, Rengina Tsampika"]
[Result "1/2-1/2"]
[Annotator "NA"]
[ECO "C50"]
[WhiteElo "1470"]
[BlackElo "1509"]
[PlyCount "52"]
[EventDate "2025.03.29"]
[EventType "swiss"]
[EventCountry "GRE"]
[SourceTitle "playchess.com"]
[Source "ChessBase"]
[SourceQuality "1"]
[TimeControl "40/5400+30:1800+30"]

1. e4 {[%emt 0:00:19]} e5 {[%emt 0:00:27]} 2. Nf3 {[%emt 0:00:19]} Nc6 {[%emt 0:00:16]} 3. Bc4 {[%emt 0:00:32]} Bc5 {[%emt 0:00:26]} 4. Nc3 {[%emt 0:01:10]} d6 {[%emt 0:01:00]} 5. h3 {[%emt 0:01:40]} h6 {[%emt 0:00:59]} 6. d3 {[%emt 0:04:53]} Nf6 {[%emt 0:00:53]} 7. O-O {[%emt 0:00:54]} O-O {[%emt 0:00:44]} 8. Re1 {[%emt 0:00:57]} Na5 {[%emt 0:02:45]} 9. Bb3 {[%emt 0:03:15]} Nxb3 {[%emt 0:01:29]} 10. axb3 {[%emt 0:00:20]} a6 {[%emt 0:01:11]} 11. Be3 {[%emt 0:00:25]} Ba7 {[%emt 0:01:25]} 12. Bxa7 {[%emt 0:00:18]} Rxa7 {[%emt 0:00:22]} 13. d4 {[%emt 0:06:35]} Nd7 {[%emt 0:06:46]} 14. Re3 {[%emt 0:04:01]} Qf6 {[%emt 0:03:11]} 15. Nd5 {[%emt 0:03:32]} Qd8 {[%emt 0:01:32]} 16. Nh2 {[%emt 0:11:10]} c6 {[%emt 0:02:39]} 17. Nc3 {[%emt 0:58:40]} Qb6 {[%emt 0:03:30]} 18. d5 {[%emt 0:00:00]} Nf6 {[%emt 0:05:42]} 19. Rg3 {[%emt 0:00:00]} Qd4 {[%emt 0:06:02]} 20. Qf3 {[%emt 0:00:00]} Kh8 {[%emt 0:05:47]} 21. Rd1 {[%emt 0:00:00]} Qb6 {[%emt 0:04:30]} 22. Nf1 {[%emt 0:00:00]} c5 {[%emt 0:09:02]} 23. Ne3 {[%emt 0:00:00]} Qc7 {[%emt 0:09:44]} 24. Nf5 {[%emt 0:00:00]} Bxf5 {[%emt 0:00:25]} 25. exf5 {[%emt 0:00:00]} b5 {[%emt 0:03:04]} 26. Re1 {[%emt 0:00:00]} Rg8 {[%emt 0:02:16]} 1/2-1/2